{"text_format":"1","workbook":"xlsx","n_sheets":1,"sheets":["Cocadination"],"not_rendered":{"charts":0,"images":0,"macros":1,"external_links":0,"defined_names":2,"comments":0,"pivot_tables":0},"unopened":[],"bounds":{"document_bytes":16777216,"sheet_cells":100000,"rows_first":2000,"rows_last":500,"rows_between":2000,"halvings":0,"cell_chars":16384,"cell_head_chars":4096},"cells_cut":0,"cells_raw":0,"read":"whole","date_system":"1900"}

{"sheet":"Cocadination","index":0,"n_rows":18,"n_cols":10,"rows_kept":18,"cut":false,"hidden":false,"merged":[]}
[]
[]
[null,null,null,"Input",null,null,null,null,"Output"]
[]
[null,"S.No","Patient Id","Name","Study Name",null,"S.No","Patient Id","Name","Study Name"]
[null,1,"CHE001","Kani","MRI Brain",null,1,"CHE001","Kani",{"$f":"concat(H6,C6:C14,2)","v":"MRI Brain,CT Brain,US"}]
[null,{"$f":"$B6+1","v":2},"CHE001","Kani","CT Brain",null,{"$f":"$B6+1","v":2},"CHE002","Tamilselvi",{"$f":"concat(H7,C7:C15,2)","v":"XRAY,CT Breast"}]
[null,{"$f":"$B7+1","v":3},"CHE001","Kani","US",null,{"$f":"$B7+1","v":3},"CHE003","Arun","Blood Analysis,XRAY,MRI"]
[null,4,"CHE002","Tamilselvi","XRAY",null,4,"CHE004","Margam","MRI"]
[null,5,"CHE002","Tamilselvi","CT Breast",null,5]
[null,6,"CHE003","Arun","Blood Analysis",null,6]
[null,7,"CHE003","Arun","XRAY",null,7]
[null,8,"CHE003","Arun","MRI",null,8]
[null,9,"CHE004","Margam","MRI",null,9]
[]
[]
[]
[null,null,null,"Please help me in achieve the output using formula or by MACRO"]